bitfinex/quotes_BTCUSD_20240823
["timestamp","ask_amount","ask_price","bid_price","bid_amount"]
[1724372822296,0.00823,60740.0,60739.0,0.475977]
[1724372822581,0.00823,60740.0,60739.0,1.48617198]
[1724372822817,0.00823,60740.0,60739.0,2.26159694]
[1724372823043,0.00823,60740.0,60739.0,2.24372598]
[1724372823246,0.00823,60740.0,60739.0,1.76874898]
[1724372823618,0.03404636,60740.0,60739.0,1.76874898]
[1724372824487,0.03404636,60740.0,60739.0,1.78174898]
[1724372825146,0.03404636,60740.0,60739.0,1.79474898]
[1724372826376,0.03404636,60740.0,60739.0,1.81261979]
[1724372826984,0.03404636,60740.0,60739.0,1.87584898]
[1724372827165,0.03404636,60740.0,60739.0,1.89371979]
[1724372827682,0.03404636,60740.0,60739.0,1.81261979]
[1724372829441,0.03404636,60740.0,60739.0,1.96031979]
[1724372829928,0.03404636,60740.0,60739.0,2.31345872]
[1724372830062,0.03404636,60740.0,60739.0,2.31445872]
[1724372830266,0.03404636,60740.0,60739.0,2.28959679]
[1724372830467,0.00111936,60740.0,60739.0,2.31445688]
[1724372830674,0.08773,60754.0,60741.0,1.958663]
[1724372830880,0.02581577,60753.0,60741.0,2.15791475]
[1724372831079,0.02581577,60753.0,60741.0,2.27578556]
[1724372831325,0.02581577,60753.0,60741.0,2.27678556]
[1724372831532,0.02581577,60753.0,60741.0,2.60605156]
[1724372831777,1e-06,60742.0,60741.0,2.80316005]
[1724372831957,0.01758677,60753.0,60752.0,1.481431]
[1724372832160,0.01758677,60753.0,60752.0,1.68630479]
[1724372832878,0.01758677,60753.0,60752.0,2.09661179]
[1724372833020,0.01758677,60753.0,60752.0,1.76740479]
[1724372833637,0.01858677,60753.0,60752.0,2.09661179]
[1724372833909,0.01758677,60753.0,60752.0,1.76740479]
[1724372834096,0.01758677,60753.0,60752.0,1.76839642]
[1724372834535,0.01758677,60753.0,60752.0,1.76739642]
[1724372834977,0.00823,60754.0,60752.0,0.28696542]
[1724372835202,0.00823,60754.0,60753.0,1.36035981]
[1724372835425,1e-06,60754.0,60753.0,1.83826081]
[1724372835655,0.0614,60770.0,60758.0,0.658348]
[1724372835656,0.02581015,60770.0,60758.0,0.658348]
[1724372835866,0.02581015,60770.0,60764.0,1.33266647]
[1724372836082,0.0002,60779.0,60764.0,2.13181291]
[1724372836291,0.02580553,60778.0,60764.0,2.46095491]
[1724372836722,0.02580553,60778.0,60764.0,1.93370442]
[1724372836948,0.02580553,60778.0,60764.0,1.35686242]
[1724372836949,0.0795,60771.0,60764.0,1.35686242]
[1724372837133,0.0795,60771.0,60764.0,1.33899998]
[1724372837340,0.0795,60771.0,60764.0,1.151997]
[1724372837550,0.03403505,60765.0,60764.0,1.1698532]
[1724372837970,0.03403505,60765.0,60764.0,1.1838532]
[1724372838199,0.03403505,60765.0,60764.0,1.74024198]
[1724372838401,0.03403505,60765.0,60764.0,1.75809987]
[1724372838932,0.03403505,60765.0,60764.0,1.69999987]
[1724372839219,0.03403505,60765.0,60764.0,1.68999987]
[1724372839425,0.00823,60765.0,60764.0,2.25844187]
[1724372839627,0.00823,60765.0,60764.0,2.26044187]
[1724372839830,0.00823,60765.0,60764.0,1.92529987]
[1724372840031,0.00823,60765.0,60764.0,1.92429987]
[1724372840237,0.00823,60765.0,60764.0,1.93729987]
[1724372840458,0.00823,60765.0,60764.0,1.92529987]
[1724372840678,0.00823,60765.0,60764.0,1.92429353]
[1724372840885,0.00823,60765.0,60764.0,1.80433939]
[1724372841089,0.00823,60765.0,60764.0,1.60333641]
[1724372841295,0.00823,60765.0,60764.0,1.17419441]
[1724372841497,0.00823,60765.0,60764.0,1.15634286]
[1724372841697,0.00823,60765.0,60764.0,1.16934286]
[1724372841873,0.00823,60765.0,60764.0,1.18719842]
[1724372842102,0.00823,60765.0,60764.0,1.16934286]
[1724372842300,0.00823,60765.0,60764.0,1.15634286]
[1724372842509,0.00823,60765.0,60764.0,1.34834584]
[1724372842710,0.00823,60765.0,60764.0,1.33434584]
[1724372842864,0.00823,60765.0,60764.0,1.35734584]
[1724372843038,0.00823,60765.0,60764.0,1.37134584]
[1724372843240,0.00823,60765.0,60764.0,1.35734584]
[1724372843445,0.00823,60765.0,60764.0,1.34334584]
[1724372843446,0.08943,60765.0,60764.0,1.34334584]
[1724372843666,0.08943,60765.0,60764.0,1.34934584]
[1724372843918,0.08943,60765.0,60764.0,1.34334584]
[1724372844341,0.08943,60765.0,60764.0,1.34499998]
[1724372844962,0.08943,60765.0,60764.0,1.187997]
[1724372845370,0.08943,60765.0,60764.0,1.180997]
[1724372845592,0.08943,60765.0,60764.0,1.187997]
[1724372846112,0.08943,60765.0,60764.0,1.174997]
[1724372846306,0.08943,60765.0,60764.0,1.187997]
[1724372846754,0.00823,60765.0,60764.0,1.34599998]
[1724372847013,0.00823,60765.0,60764.0,1.41792998]
[1724372847727,0.00823,60765.0,60764.0,1.74707198]
[1724372848136,0.00823,60765.0,60764.0,1.94092591]
[1724372849460,0.00823,60765.0,60764.0,1.53578391]
[1724372850064,0.00823,60765.0,60764.0,1.86492591]
[1724372850272,0.00823,60765.0,60764.0,1.53578391]
[1724372850621,0.00823,60765.0,60764.0,1.34878093]
[1724372850845,0.00823,60765.0,60764.0,1.230927]
[1724372851878,0.00823,60765.0,60764.0,1.253927]
[1724372852532,0.00823,60765.0,60764.0,1.74707198]
[1724372853289,0.00823,60765.0,60764.0,1.89397198]
[1724372854062,0.08883,60765.0,60764.0,1.253927]
[1724372854838,0.08883,60765.0,60764.0,1.27178327]
[1724372855159,0.08883,60765.0,60764.0,1.253927]
[1724372856052,0.00823,60765.0,60764.0,1.253927]
[1724372856517,0.00823,60765.0,60764.0,1.583069]
[1724372856927,0.00823,60765.0,60764.0,1.253927]
[1724372857141,0.00823,60765.0,60764.0,1.88747198]
[1724372857927,0.00823,60765.0,60764.0,1.74707198]
[1724372858530,0.00823,60765.0,60764.0,1.253927]
[1724372859195,0.06823,60765.0,60764.0,1.253927]
[1724372859680,0.06823,60765.0,60764.0,1.230927]
[1724372861718,0.15033,60765.0,60764.0,1.230927]
[1724372866306,0.15033,60765.0,60764.0,0.901785]
[1724372866480,0.15033,60765.0,60764.0,0.835855]
[1724372866914,0.15133,60765.0,60764.0,0.901792]
[1724372867303,0.15133,60765.0,60764.0,0.888792]
[1724372867531,0.15133,60765.0,60764.0,0.55965]
[1724372868049,0.15133,60765.0,60764.0,0.067937]
[1724372868050,0.45322149,60765.0,60764.0,0.067937]
[1724372868253,0.45322149,60765.0,60764.0,0.002]
[1724372868254,0.5270718,60765.0,60764.0,0.002]
[1724372868669,0.45322149,60765.0,60764.0,0.002]
[1724372869286,0.5270718,60765.0,60764.0,0.003]
[1724372869534,0.5270718,60765.0,60760.0,0.006595]
[1724372869535,0.0845,60761.0,60760.0,0.006595]
[1724372869775,0.39279289,60761.0,60759.0,0.0009042]
[1724372869991,0.34850298,60760.0,60759.0,0.0009042]
[1724372870249,0.1,60760.0,60759.0,0.0074992]
[1724372870448,0.02581533,60761.0,60760.0,0.822907]
[1724372870856,0.02681533,60761.0,60760.0,0.824907]
[1724372871058,0.02681533,60761.0,60760.0,0.823907]
[1724372871059,0.10451533,60761.0,60760.0,0.823907]
[1724372871461,0.10451533,60761.0,60760.0,0.822907]
[1724372872843,0.02981533,60761.0,60760.0,0.823907]
[1724372873045,0.03281533,60761.0,60760.0,1.15407]
[1724372873316,0.02881533,60761.0,60760.0,1.15307]
[1724372873724,0.03281533,60761.0,60760.0,1.15407]
[1724372874856,0.03281533,60761.0,60760.0,1.17707]
[1724372875723,0.03281533,60761.0,60760.0,1.15407]
[1724372876455,0.10871533,60761.0,60760.0,1.15407]
[1724372876863,0.10871533,60761.0,60760.0,0.824907]
[1724372877460,0.10871533,60761.0,60760.0,1.15407]
[1724372878031,0.10831915,60761.0,60760.0,1.15407]
[1724372878597,0.16961915,60761.0,60760.0,0.495744]
[1724372878806,0.16961915,60761.0,60760.0,0.824907]
[1724372879002,0.16961915,60761.0,60760.0,0.495744]
[1724372879249,0.16561915,60761.0,60760.0,0.494744]
[1724372879448,0.16461915,60761.0,60760.0,0.493744]
[1724372879832,0.16261915,60761.0,60760.0,0.493744]
[1724372880236,0.16261915,60761.0,60760.0,0.494744]
[1724372880767,0.16561915,60761.0,60760.0,0.494744]
[1724372881744,0.16261915,60761.0,60760.0,0.494744]
[1724372882641,0.02541915,60761.0,60760.0,0.823907]
[1724372884112,0.02541915,60761.0,60760.0,1.15307]
[1724372888575,0.02541915,60761.0,60760.0,1.1539742]
[1724372889383,0.02624115,60761.0,60760.0,1.1539742]
[1724372890427,0.02624115,60761.0,60760.0,0.8248112]
[1724372891089,0.02624115,60761.0,60760.0,1.1539742]
[1724372891288,0.02624115,60761.0,60760.0,0.8248112]
[1724372891615,0.02624115,60761.0,60760.0,1.1539742]
[1724372891816,0.02624115,60761.0,60760.0,0.8248112]
[1724372894159,0.02924115,60761.0,60760.0,0.8248112]
[1724372894360,0.02624115,60761.0,60760.0,0.8248112]
[1724372895354,0.02624115,60761.0,60760.0,0.8884112]
[1724372895558,0.02624115,60761.0,60760.0,1.2175742]
[1724372895743,0.02624115,60761.0,60760.0,0.8884112]
[1724372895943,0.02624115,60761.0,60760.0,0.8248112]
[1724372895944,0.11044115,60761.0,60760.0,0.8248112]
[1724372896144,0.17414115,60761.0,60760.0,0.8248112]
[1724372896394,0.17514115,60761.0,60760.0,0.8248112]
[1724372896596,0.17714115,60761.0,60760.0,0.4956482]
[1724372897164,0.17714115,60761.0,60760.0,0.0019042]
[1724372897165,0.34114413,60761.0,60760.0,0.0019042]
[1724372897576,0.33914413,60761.0,60760.0,0.0019042]
[1724372898515,0.34114413,60761.0,60760.0,0.0019042]
[1724372898798,0.33814413,60761.0,60760.0,0.1654852]
[1724372899257,0.34014413,60761.0,60760.0,0.1654852]
[1724372899437,0.34114413,60761.0,60760.0,0.1654852]
[1724372899683,0.34314413,60761.0,60760.0,0.1654852]
[1724372899839,0.34114413,60761.0,60760.0,0.1654852]
[1724372900045,0.34314413,60761.0,60760.0,0.1654852]
[1724372900253,0.34514413,60761.0,60760.0,0.1654852]
[1724372900682,0.34214413,60761.0,60760.0,0.1654852]
[1724372901099,0.34314413,60761.0,60760.0,0.1654852]
[1724372901460,0.34514413,60761.0,60760.0,0.1654852]
[1724372902062,0.34214413,60761.0,60760.0,0.1654852]
[1724372902556,0.34314413,60761.0,60760.0,0.1654852]
[1724372902765,0.34214413,60761.0,60760.0,0.1654852]
[1724372903145,0.34148389,60761.0,60760.0,0.1654852]
[1724372904387,0.39074997,60761.0,60760.0,0.4946482]
[1724372905001,0.39374997,60761.0,60760.0,0.0009042]
[1724372905176,0.41838301,60761.0,60760.0,0.0009042]
[1724372907213,0.39080051,60761.0,60760.0,0.0009042]
[1724372907456,0.34148389,60761.0,60760.0,0.0009042]
[1724372907647,0.34148389,60761.0,60756.0,0.329181]
[1724372907900,0.16400298,60760.0,60758.0,0.164585]
[1724372908050,0.16400298,60760.0,60755.0,0.0009042]
[1724372908051,0.16400298,60760.0,60759.0,0.164584]
[1724372908213,0.16400298,60760.0,60759.0,0.493753]
[1724372909014,0.11078091,60761.0,60760.0,0.493744]
[1724372909267,0.27678389,60761.0,60760.0,0.493744]
[1724372909478,0.27278389,60761.0,60760.0,0.493744]
[1724372910509,0.27478389,60761.0,60760.0,0.822907]
[1724372910749,0.02758091,60761.0,60760.0,1.15207]
[1724372911474,0.02958091,60761.0,60760.0,1.15207]
[1724372911879,0.02958091,60761.0,60760.0,1.23507]
[1724372912369,0.02558091,60761.0,60760.0,1.23507]
[1724372912571,0.02758091,60761.0,60760.0,1.23507]
[1724372913043,0.02558091,60761.0,60760.0,1.23507]
[1724372913370,0.02758091,60761.0,60760.0,1.23507]
[1724372913576,0.02558091,60761.0,60760.0,1.23507]
[1724372913983,0.02558091,60761.0,60760.0,1.2359742]
[1724372914932,0.02558091,60761.0,60760.0,1.5651372]
[1724372915534,0.02558091,60761.0,60760.0,1.5701372]
[1724372916055,0.02558091,60761.0,60760.0,1.5751372]
[1724372916329,0.02558091,60761.0,60760.0,1.5651372]
[1724372916531,0.02558091,60761.0,60760.0,1.58999679]
[1724372916685,0.02558091,60761.0,60760.0,1.59699679]
[1724372917535,0.02558091,60761.0,60760.0,1.59699673]
[1724372918467,0.02558091,60761.0,60760.0,1.5791372]
[1724372919589,0.02558091,60761.0,60760.0,1.5651372]
[1724372919760,0.02558091,60761.0,60760.0,1.5721372]
[1724372919981,0.02558091,60761.0,60760.0,1.5791372]
[1724372920207,0.02558091,60761.0,60760.0,1.5721372]
[1724372920483,0.02558091,60761.0,60760.0,1.5791372]
[1724372921324,0.02558091,60761.0,60760.0,1.5721372]
[1724372921449,0.02558091,60761.0,60760.0,1.6385372]
[1724372921643,0.02558091,60761.0,60760.0,2.12470318]
[1724372921840,0.02558091,60761.0,60760.0,2.13170318]
[1724372922243,0.02558091,60761.0,60760.0,2.14270318]
[1724372922476,0.02558091,60761.0,60760.0,2.13570318]
[1724372922700,0.02558091,60761.0,60760.0,2.14670318]
[1724372923191,0.02558091,60761.0,60760.0,2.13570318]
[1724372923373,0.02558091,60761.0,60760.0,1.82054018]
[1724372923575,0.02558091,60761.0,60760.0,1.6455372]
[1724372924496,0.02558091,60761.0,60760.0,1.6595372]
[1724372924698,0.02558091,60761.0,60760.0,1.6455372]
[1724372925261,0.02558091,60761.0,60760.0,1.6315372]
[1724372925502,0.02558091,60761.0,60760.0,1.6455372]
[1724372925652,0.02558091,60761.0,60760.0,1.6595372]
[1724372925834,0.02558091,60761.0,60760.0,1.6315372]
[1724372926246,0.02558091,60761.0,60760.0,1.6495372]
[1724372927039,0.02558091,60761.0,60760.0,1.5665372]
[1724372928517,0.02558091,60761.0,60760.0,1.5001372]
[1724372931495,0.02558091,60761.0,60760.0,1.1709742]
[1724372931711,0.16348091,60761.0,60760.0,0.1834852]
[1724372931912,0.16448091,60761.0,60760.0,0.1834852]
[1724372932126,0.33048389,60761.0,60760.0,0.5126482]
[1724372932329,0.38825551,60761.0,60760.0,0.1834852]
[1724372932534,0.38825551,60761.0,60760.0,0.0189042]
[1724372932734,0.38825551,60761.0,60760.0,0.0099042]
[1724372932961,0.38825551,60761.0,60760.0,0.0129042]
[1724372933165,0.43755735,60761.0,60760.0,0.0129042]
[1724372933529,0.43755735,60761.0,60760.0,0.0099042]
[1724372933880,0.38825551,60761.0,60760.0,0.0099042]
[1724372934451,0.39025551,60761.0,60760.0,0.0099042]
[1724372934661,0.43955735,60761.0,60760.0,0.0009042]
[1724372935079,0.43955735,60761.0,60760.0,0.0049042]
[1724372935297,0.44155808,60761.0,60760.0,0.0059042]
[1724372935552,0.43955808,60761.0,60760.0,0.0009042]
[1724372935696,0.43955808,60761.0,60760.0,0.0019042]
[1724372935894,0.44355808,60761.0,60760.0,0.0029042]
[1724372938686,0.39425551,60761.0,60760.0,0.0029042]
[1724372939020,0.46820936,60761.0,60760.0,0.0029042]
[1724372939229,0.443551,60761.0,60760.0,0.0029042]
[1724372939431,0.46819321,60761.0,60760.0,0.0029042]
[1724372939643,0.39425551,60761.0,60760.0,0.0029042]
[1724372939845,0.44354809,60761.0,60760.0,0.0029042]
[1724372940214,0.43954809,60761.0,60760.0,0.0029042]
[1724372940423,0.44154809,60761.0,60760.0,0.0029042]
[1724372940831,0.39425551,60761.0,60760.0,0.0029042]
[1724372941029,0.39425551,60761.0,60759.0,0.0009053]
[1724372941030,0.005,60760.0,60759.0,0.0009053]
[1724372941232,0.62069699,60760.0,60759.0,0.0009053]
[1724372941398,0.47282158,60760.0,60759.0,0.0009053]
[1724372941588,0.62067388,60760.0,60759.0,0.0009053]
[1724372942453,0.62167388,60760.0,60759.0,0.0019053]
[1724372942842,0.47382158,60760.0,60759.0,0.0019053]
[1724372944010,0.48182158,60760.0,60759.0,0.0029053]
[1724372945586,0.67893007,60760.0,60759.0,0.0029053]
[1724372949221,0.67975307,60760.0,60759.0,0.0029053]
[1724372949612,0.80276659,60760.0,60759.0,0.0029053]
[1724372949967,0.67975307,60760.0,60759.0,0.0029053]
[1724372950187,0.80276006,60760.0,60759.0,0.0029053]
[1724372950394,0.67975307,60760.0,60759.0,0.0029053]
[1724372950589,0.80274883,60760.0,60759.0,0.0029053]
[1724372951994,0.80273237,60760.0,60759.0,0.0029053]
[1724372952543,0.67975307,60760.0,60759.0,0.0029053]
[1724372954030,0.80273237,60760.0,60759.0,0.0029053]
[1724372954237,0.005,60756.0,60755.0,0.0009042]
[1724372954443,0.41095712,60756.0,60755.0,0.0009042]
[1724372954651,0.51095712,60756.0,60755.0,0.0009042]
[1724372954850,0.41260298,60756.0,60755.0,0.0009042]
[1724372955196,0.1479,60747.0,60746.0,0.065962]
[1724372955414,0.003,60742.0,60741.0,0.16463]
[1724372955616,0.36111147,60742.0,60741.0,0.16463]
[1724372955813,0.36211147,60742.0,60741.0,0.16463]
[1724372956699,0.36311147,60742.0,60741.0,0.16463]
[1724372957011,0.001,60741.0,60740.0,0.065967]
[1724372957214,0.16400298,60741.0,60740.0,0.065967]
[1724372957948,0.16500298,60741.0,60740.0,0.065967]
[1724372958151,0.16700298,60741.0,60740.0,0.065967]
[1724372958353,0.20381413,60741.0,60740.0,0.065967]
[1724372958550,0.28411413,60741.0,60740.0,0.065967]
[1724372958755,0.28611413,60741.0,60740.0,0.065967]
[1724372959159,0.28811413,60741.0,60740.0,0.065967]
[1724372959593,0.003,60737.0,60736.0,0.0009053]
[1724372959757,0.16700298,60737.0,60736.0,0.0009053]
[1724372960161,0.16400298,60737.0,60736.0,0.2315213]
[1724372960417,0.16400298,60737.0,60736.0,0.5608143]
[1724372960825,0.16500298,60737.0,60736.0,0.2315213]
[1724372961025,0.16900298,60737.0,60736.0,0.2315213]
[1724372961680,0.17200298,60737.0,60736.0,0.2315213]
[1724372962510,0.21734413,60737.0,60736.0,0.2315213]
[1724372962712,0.17200298,60737.0,60736.0,0.2315213]
[1724372963851,0.16900298,60737.0,60736.0,0.2315213]
[1724372964257,0.17000298,60737.0,60736.0,0.2315213]
[1724372964486,0.16900298,60737.0,60736.0,0.2315213]
[1724372965003,0.005,60737.0,60736.0,0.8901073]
[1724372965180,0.005,60737.0,60736.0,1.3625003]
[1724372966212,0.002,60737.0,60736.0,1.3625003]
[1724372966781,0.19710849,60742.0,60741.0,0.493899]
[1724372966951,0.36111147,60742.0,60741.0,0.493899]
[1724372968445,0.36111147,60742.0,60741.0,0.823165]
[1724372968957,0.36411147,60742.0,60741.0,0.823165]
[1724372969164,0.36811147,60742.0,60741.0,0.823165]
[1724372970709,0.36511147,60742.0,60741.0,0.823165]
[1724372971123,0.36711147,60742.0,60741.0,0.823165]
[1724372971530,0.36511147,60742.0,60741.0,0.823165]
[1724372971751,0.36111147,60742.0,60741.0,0.823165]
[1724372972038,0.36711147,60742.0,60741.0,0.823165]
[1724372972461,0.36411147,60742.0,60741.0,0.823165]
[1724372972791,0.36811147,60742.0,60741.0,0.823165]
[1724372973010,0.36411147,60742.0,60741.0,0.823165]
[1724372973225,0.36111147,60742.0,60741.0,0.823165]
[1724372973355,0.36411147,60742.0,60741.0,0.823165]
[1724372973559,0.36311147,60742.0,60741.0,0.823165]
[1724372973765,0.36311147,60742.0,60741.0,0.8240703]
[1724372973957,0.36111147,60742.0,60741.0,0.8240703]
[1724372974363,0.16700298,60742.0,60741.0,0.8240703]
[1724372974582,0.36411147,60742.0,60741.0,0.8240703]
[1724372974783,0.36111147,60742.0,60741.0,0.8240703]
[1724372975222,0.36911147,60742.0,60741.0,0.8240703]
[1724372975472,0.36511147,60742.0,60741.0,0.8240703]
[1724372975867,0.36911147,60742.0,60741.0,0.8240703]
[1724372976472,0.36511147,60742.0,60741.0,0.8240703]
[1724372976994,0.36811147,60742.0,60741.0,0.8240703]
[1724372977149,0.36511147,60742.0,60741.0,0.8240703]
[1724372977544,0.36811147,60742.0,60741.0,0.8240703]
[1724372979511,0.36411147,60742.0,60741.0,0.8240703]
[1724372979869,0.36711147,60742.0,60741.0,0.8240703]
[1724372980113,0.36411147,60742.0,60741.0,0.8240703]
[1724372980267,0.36611147,60742.0,60741.0,0.8240703]
[1724372980479,0.24783567,60742.0,60741.0,0.8240703]
[1724372981311,0.24583567,60742.0,60741.0,0.8240703]
[1724372981508,0.08383269,60742.0,60741.0,1.2997363]
[1724372981707,0.08083269,60742.0,60741.0,1.6290023]
[1724372981913,0.08383269,60742.0,60741.0,1.6290023]
[1724372982515,0.005,60742.0,60741.0,1.6290023]
[1724372984274,0.003,60742.0,60741.0,1.6290023]
[1724372984631,0.19703317,60748.0,60747.0,1.152319]
[1724372984971,0.36103615,60748.0,60747.0,1.152319]
[1724372985746,0.000823,60755.0,60754.0,0.164598]
[1724372985934,0.16482598,60755.0,60754.0,0.88549]
[1724372986290,0.000823,60755.0,60754.0,1.543882]
[1724372987262,0.008823,60755.0,60754.0,1.215686]
[1724372988545,0.017823,60755.0,60754.0,1.216686]
[1724372991133,0.017823,60755.0,60754.0,0.82499]
[1724372991134,0.25992598,60755.0,60754.0,0.82499]
[1724372991371,0.45695915,60755.0,60754.0,0.82499]
[1724372991540,0.45695915,60755.0,60754.0,0.495794]
[1724372991892,0.37885915,60755.0,60754.0,0.82499]
[1724372992308,0.21485617,60755.0,60754.0,0.89009]
[1724372992480,0.017823,60755.0,60754.0,1.219286]
[1724372995066,0.002,60763.0,60754.0,1.219286]
[1724372995067,0.00823,60780.0,60764.0,1.481139]
[1724372995402,0.00823,60780.0,60767.0,0.966815]
[1724372995609,0.00823,60780.0,60767.0,1.295941]
[1724372995826,0.19703317,60777.0,60767.0,1.295941]
[1724372995959,0.00823,60780.0,60767.0,0.822815]
[1724372995960,0.19703317,60771.0,60767.0,0.822815]
[1724372996704,0.01944659,60768.0,60767.0,0.822815]
[1724372996848,0.01944659,60768.0,60767.0,1.151941]
[1724372997262,0.01044659,60768.0,60767.0,1.151941]
[1724372997746,0.01044659,60768.0,60767.0,1.161941]
[1724372998024,0.01044659,60768.0,60767.0,1.153941]
[1724372998235,0.01044659,60768.0,60767.0,1.155941]
[1724372998670,0.01044659,60768.0,60767.0,1.622467]
[1724372999996,0.01044659,60768.0,60767.0,1.68053598]
[1724373000624,0.01044659,60768.0,60767.0,1.293341]
[1724373000850,0.01044659,60768.0,60767.0,1.2976871]
[1724373001279,0.01044659,60768.0,60767.0,1.6268131]
[1724373004389,0.01044659,60768.0,60767.0,1.293341]
[1724373005036,0.01044659,60768.0,60767.0,1.622467]
[1724373009520,0.01044659,60768.0,60767.0,1.96204]
[1724373009745,0.01044659,60768.0,60767.0,1.632914]
[1724373010823,0.01126959,60768.0,60767.0,1.632914]
[1724373011698,0.01126959,60768.0,60767.0,1.96204]
[1724373011914,0.01126959,60768.0,60767.0,1.632914]
[1724373012349,0.01126959,60768.0,60767.0,1.301788]
[1724373012585,0.01126959,60768.0,60767.0,0.833262]
[1724373012807,0.01126959,60768.0,60767.0,0.854262]
[1724373012808,0.08786959,60768.0,60767.0,0.854262]
[1724373013219,0.08786959,60768.0,60767.0,0.847262]
[1724373013430,0.25187257,60768.0,60767.0,0.847262]
[1724373014319,0.08786959,60768.0,60767.0,0.833262]
[1724373014523,0.01126959,60768.0,60767.0,0.839262]
[1724373014739,0.01126959,60768.0,60767.0,1.174388]
[1724373014961,0.01126959,60768.0,60767.0,1.162388]
[1724373015795,0.01126959,60768.0,60767.0,1.163388]
[1724373016019,0.01126959,60768.0,60767.0,0.834262]
[1724373016020,0.08946959,60768.0,60767.0,0.834262]
[1724373016249,0.31437257,60768.0,60767.0,0.835262]
[1724373016680,0.25347257,60768.0,60767.0,0.835262]
[1724373017589,0.26089132,60768.0,60767.0,0.833262]
[1724373017766,0.25347257,60768.0,60767.0,0.833262]
[1724373017927,0.18262703,60768.0,60767.0,0.837262]
[1724373018128,0.18262703,60768.0,60767.0,1.166388]
[1724373018328,0.18262703,60768.0,60767.0,0.833262]
[1724373019217,0.18262703,60768.0,60767.0,1.162388]
[1724373019423,0.01862405,60768.0,60767.0,1.162388]
[1724373019632,0.01862405,60768.0,60767.0,1.226288]
[1724373019799,0.01126959,60768.0,60767.0,1.226288]
[1724373021123,0.01126959,60768.0,60767.0,1.162388]
[1724373021325,0.09406959,60768.0,60767.0,1.162388]
[1724373023494,0.01126959,60768.0,60767.0,1.162388]
[1724373023912,0.01126959,60768.0,60767.0,1.238088]
[1724373025438,0.01126959,60768.0,60767.0,1.239088]
[1724373025838,0.01126959,60768.0,60767.0,1.568214]
[1724373026050,0.01126959,60768.0,60767.0,1.304288]
[1724373027277,0.01126959,60768.0,60767.0,1.303288]
[1724373027539,0.01126959,60768.0,60767.0,1.308288]
[1724373027733,0.01126959,60768.0,60767.0,1.637414]
[1724373028728,0.01126959,60768.0,60767.0,1.641414]
[1724373028932,0.01126959,60768.0,60767.0,1.637414]
[1724373029314,0.01126959,60768.0,60767.0,1.646414]
[1724373029883,0.01126959,60768.0,60767.0,1.641414]
[1724373030300,0.01126959,60768.0,60767.0,1.650414]
[1724373032367,0.01126959,60768.0,60767.0,1.321288]
[1724373032575,0.01126959,60768.0,60767.0,1.180388]
[1724373033992,0.25367257,60768.0,60767.0,0.19301]
[1724373034260,0.2916458,60768.0,60767.0,0.522136]
[1724373034407,0.2916458,60768.0,60767.0,0.028447]
[1724373034408,0.26099439,60768.0,60767.0,0.028447]
[1724373034617,0.32749439,60768.0,60767.0,0.18401]
[1724373034817,0.32749439,60768.0,60767.0,0.019447]
[1724373035027,0.38124715,60768.0,60767.0,0.010447]
[1724373035402,0.38324715,60768.0,60767.0,0.010447]
[1724373035601,0.38524715,60768.0,60767.0,0.010447]
[1724373035805,0.33249439,60768.0,60767.0,0.010447]
[1724373036256,0.32849439,60768.0,60767.0,0.010447]
[1724373036460,0.32749439,60768.0,60767.0,0.010447]
[1724373036666,0.32749439,60768.0,60767.0,0.011447]
[1724373037301,0.32749439,60768.0,60767.0,0.010447]
[1724373037713,0.32849439,60768.0,60767.0,0.011447]
[1724373038354,0.39685797,60768.0,60767.0,0.011447]
[1724373038596,0.39885797,60768.0,60767.0,0.011447]
[1724373038768,0.39985797,60768.0,60767.0,0.012447]
[1724373038998,0.39985797,60768.0,60767.0,0.011447]
[1724373039132,0.39885797,60768.0,60767.0,0.011447]
[1724373039340,0.39985797,60768.0,60767.0,0.012447]
[1724373039558,0.39885797,60768.0,60767.0,0.011447]
[1724373039944,0.39885797,60768.0,60767.0,0.012447]
[1724373039945,0.39685797,60768.0,60767.0,0.012447]
[1724373040128,0.39885797,60768.0,60767.0,0.012447]
[1724373040325,0.34663317,60766.0,60765.0,0.0009053]
[1724373040580,0.74108959,60766.0,60765.0,0.0009053]
[1724373040788,0.61788591,60766.0,60765.0,0.0009053]
[1724373041132,0.64088591,60766.0,60765.0,0.0009053]
[1724373042522,0.65488591,60766.0,60765.0,0.0019053]
[1724373042731,0.005,60755.0,60741.0,0.0009053]
[1724373042933,0.32352108,60755.0,60742.0,0.32926]
[1724373043145,0.42352108,60755.0,60753.0,0.012447]
[1724373043975,0.42352108,60755.0,60754.0,0.0019053]
[1724373044170,0.43152108,60755.0,60754.0,0.0019053]
[1724373044778,0.42752108,60755.0,60754.0,0.0019053]
[1724373045191,0.42652108,60755.0,60754.0,0.0019053]
[1724373045481,0.42952108,60755.0,60754.0,0.0019053]
[1724373045706,0.43052108,60755.0,60754.0,0.0019053]
[1724373045825,0.43052108,60755.0,60754.0,0.0009053]
[1724373045826,0.41952108,60755.0,60754.0,0.0009053]
[1724373046026,0.43152108,60755.0,60754.0,0.1665033]
[1724373046225,0.44752108,60755.0,60754.0,0.0029053]
[1724373046633,0.42152108,60755.0,60754.0,0.0009053]
[1724373046830,0.43352108,60755.0,60754.0,0.0009053]
[1724373047059,0.43930298,60755.0,60754.0,0.0009053]
[1724373047393,0.42630298,60755.0,60754.0,0.0009053]
[1724373047759,0.42430298,60755.0,60754.0,0.0009053]
[1724373047965,0.4868366,60755.0,60754.0,0.0009053]
[1724373048750,0.42430298,60755.0,60754.0,0.1655033]
[1724373048936,0.42430298,60755.0,60754.0,0.0009053]
[1724373049308,0.43830298,60755.0,60754.0,0.0009053]
[1724373050490,0.44030298,60755.0,60754.0,0.0009053]
[1724373050697,0.5022366,60755.0,60754.0,0.0009053]
[1724373050896,0.5042366,60755.0,60754.0,0.0009053]
[1724373053296,0.43830298,60755.0,60754.0,0.0009053]
[1724373053529,0.43830298,60755.0,60754.0,0.1655033]
[1724373053780,0.43830298,60755.0,60754.0,0.4946993]
[1724373054032,0.43830298,60755.0,60754.0,0.1655033]
[1724373054301,0.43830298,60755.0,60754.0,0.0009053]
[1724373054780,0.37320298,60755.0,60754.0,0.0009053]
[1724373055160,0.37320298,60755.0,60754.0,0.1655033]
[1724373055392,0.37520298,60755.0,60754.0,0.0009053]
[1724373055594,0.41911328,60755.0,60754.0,0.0009053]
[1724373056060,0.41711328,60755.0,60754.0,0.0009053]
[1724373057017,0.29100298,60755.0,60754.0,0.1655033]
[1724373057624,0.29000298,60755.0,60754.0,0.1655033]
[1724373057856,0.29000298,60755.0,60754.0,0.0009053]